bitfinex-derivatives/quotes_ETHF0:USTF0_20260120
["timestamp","ask_amount","ask_price","bid_price","bid_amount"]
[1768893428211,3.61313896,3121.7,3119.9,6.018]
[1768893430908,3.60897739,3121.5,3120.0,3.207]
[1768893431110,3.60897739,3121.5,3120.0,6.015]
[1768893431410,3.60897739,3121.3,3119.6,3.30385]
[1768893431601,3.60897739,3121.3,3119.7,6.014]
[1768893432200,3.60897739,3121.3,3119.2,3.4643]
[1768893432401,3.6113601,3121.3,3119.3,6.014]
[1768893432715,3.76932739,3121.3,3119.4,3.30385]
[1768893433006,3.76932739,3121.3,3119.6,3.30385]
[1768893433206,3.60897739,3121.3,3119.6,3.30385]
[1768893433414,3.61313896,3121.7,3119.8,3.30385]
[1768893433815,3.61313896,3121.7,3120.0,3.30385]
[1768893435815,3.61313896,3121.7,3120.1,7.38785303]
[1768893436012,3.61313896,3121.7,3120.2,3.30385]
[1768893436614,0.00416157,3121.7,3120.2,3.30385]
[1768893437718,0.00416157,3121.7,3120.3,6.011]
[1768893439618,0.00416157,3121.7,3120.2,3.30385]
[1768893439813,0.00416157,3121.7,3120.3,6.01]
[1768893440025,0.00416157,3121.7,3120.4,6.009]
[1768893441614,0.00416157,3121.7,3120.4,9.31285]
[1768893442012,0.00416157,3121.7,3120.5,3.30385]
[1768893442220,0.00416157,3121.7,3120.4,6.009]
[1768893442914,0.00416157,3121.7,3120.6,1.50744117]
[1768893443421,0.00654428,3121.7,3120.6,1.50744117]
[1768893443913,0.00654428,3121.7,3120.7,2.8]
[1768893444325,0.00238271,3121.6,3120.7,2.8]
[1768893444929,0.00238271,3121.6,3120.9,1.50744117]
[1768893445131,0.00238271,3121.5,3120.9,1.50988183]
[1768893445432,0.00416157,3121.7,3120.9,1.50988183]
[1768893445833,0.00416157,3121.7,3120.9,0.00244066]
[1768893449727,3.61497037,3121.7,3120.9,0.00244066]
[1768893449925,5.11824997,3121.5,3120.2,2.297]
[1768893450129,1.50744117,3121.5,3120.0,1.50744117]
[1768893450334,3.6108088,3121.4,3120.1,2.797]
[1768893450735,3.6108088,3121.1,3119.7,4.38692489]
[1768893450942,3.6108088,3121.1,3119.7,4.3061377]
[1768893451538,3.6108088,3121.1,3119.8,1.50744117]
[1768893451836,3.6108088,3121.1,3119.7,1.5101377]
[1768893452042,3.6108088,3121.1,3119.8,2.796]
[1768893453042,3.7711688,3121.1,3119.7,0.00269653]
[1768893453241,3.6108088,3120.9,3119.7,2.79769653]
[1768893453743,3.6108088,3120.9,3119.7,0.00269653]
[1768893458848,3.7711788,3120.9,3119.7,0.00269653]
[1768893459146,3.6108088,3120.7,3119.7,0.00269653]
[1768893460148,0.88797504,3120.6,3118.9,2.369]
[1768893460348,3.6108088,3120.5,3118.9,2.369]
[1768893460548,3.6108088,3120.5,3118.8,3.207]
[1768893460740,3.6108088,3120.5,3118.9,2.791]
[1768893461142,3.6108088,3120.5,3118.9,2.79440433]
[1768893464352,3.6108088,3120.5,3118.9,6.20881036]
[1768893464653,3.5467863,3121.0,3119.0,3.41440603]
[1768893464853,4.43502995,3120.9,3119.0,3.41440603]
[1768893465051,4.43502995,3120.8,3119.0,3.41440603]
[1768893465353,0.88824365,3120.7,3119.0,3.41440603]
[1768893466553,3.5467863,3120.8,3119.0,3.41440603]
[1768893467453,3.5467863,3120.8,3119.1,5.995]
[1768893468048,3.5467863,3120.8,3119.1,9.40940603]
[1768893468348,7.45451285,3121.4,3119.2,3.57485603]
[1768893468349,3.5467863,3121.3,3119.2,3.57485603]
[1768893469954,3.5467863,3121.3,3119.4,3.41440603]
[1768893470649,3.5467863,3121.3,3119.6,3.41440603]
[1768893472254,3.5467863,3121.3,3119.7,5.993]
[1768893472552,0.00416157,3121.7,3119.8,3.41440603]
[1768893472757,0.00416157,3121.7,3119.9,0.16042]
[1768893472955,0.00416157,3121.7,3120.2,1.50728419]
[1768893473258,0.00416157,3121.7,3120.2,5.1232671]
[1768893473452,0.00416157,3121.7,3120.3,3.61598291]
[1768893474261,0.00416157,3121.7,3120.6,1.50728419]
[1768893474455,0.00416157,3121.7,3120.7,2.785]
[1768893477756,0.00416157,3121.7,3120.8,5.99]
[1768893477956,0.00416157,3121.7,3120.9,2.783]
[1768893478356,3.58369765,3121.7,3120.4,3.207]
[1768893478562,3.58369765,3121.7,3120.5,2.782]
[1768893478951,3.58369765,3121.7,3119.9,3.61598291]
[1768893479159,3.73987608,3121.5,3119.8,2.782]
[1768893480559,3.57953608,3121.5,3119.9,3.61598291]
[1768893481762,3.57953608,3121.5,3119.8,2.782]
[1768893483060,3.57953608,3121.5,3119.8,6.39798291]
[1768893483267,3.57953608,3121.5,3119.9,3.61598291]
[1768893493972,0.00416157,3121.7,3120.0,3.77639291]
[1768893494171,0.00416157,3121.7,3120.0,7.8505791]
[1768893494371,0.00416157,3121.7,3120.1,3.61598291]
[1768893495276,3.58369765,3121.7,3120.2,5.98]
[1768893497074,3.58369765,3121.7,3120.0,0.16041]
[1768893497279,3.58369765,3121.7,3120.3,2.772]
[1768893498679,0.00416157,3121.7,3120.3,6.38798291]
[1768893499879,0.00416157,3121.7,3120.4,5.978]
[1768893500779,0.00416157,3121.7,3120.3,3.61598291]
[1768893500980,0.00416157,3121.7,3120.4,5.977]
[1768893502079,0.00416157,3121.7,3120.5,3.61598291]
[1768893503382,0.00416157,3121.7,3120.3,0.16039]
[1768893503573,3.6108821,3121.7,3120.1,4.00916711]
[1768893503775,3.6108821,3121.7,3120.4,3.207]
[1768893503975,3.6108821,3121.7,3119.9,4.00916711]
[1768893504175,3.6108821,3121.7,3120.5,2.769]
[1768893504583,3.6108821,3121.7,3119.8,3.49810855]
[1768893504985,3.6108821,3121.7,3119.9,5.975]
[1768893505178,3.6108821,3121.7,3120.0,3.49810855]
[1768893505382,3.6108821,3121.7,3120.1,5.975]
[1768893505577,3.6108821,3121.7,3120.0,3.49810855]
[1768893505772,0.00416157,3121.7,3120.2,3.49810855]
[1768893506284,0.00416157,3121.7,3120.4,3.49810855]
[1768893510889,0.00416157,3121.7,3120.6,3.49810855]
[1768893513494,0.00416157,3121.7,3120.8,3.49810855]
[1768893513692,0.00416157,3121.7,3120.9,5.972]
[1768893515689,3.6108821,3121.7,3120.5,2.766]
[1768893517499,0.00416157,3121.7,3120.5,2.766]
[1768893518898,0.00416157,3121.7,3120.5,3.206]
[1768893519095,0.00416157,3121.7,3120.6,2.764]
[1768893519895,0.00416157,3121.7,3120.7,2.764]
[1768893520289,3.6108821,3121.7,3120.7,2.764]
[1768893523204,3.6108821,3121.7,3120.2,1.50745449]
[1768893523501,3.6108821,3121.7,3120.3,5.968]
[1768893524399,3.54529927,3121.4,3119.8,0.16042]
[1768893524603,3.54529927,3121.1,3119.6,4.84848287]
[1768893524812,3.54529927,3121.1,3119.9,2.761]
[1768893525102,3.70563927,3121.4,3119.9,2.761]
[1768893525308,3.70563927,3121.4,3119.6,3.34102838]
[1768893525499,3.70563927,3121.4,3119.7,5.967]
[1768893527401,3.70563927,3121.4,3119.6,3.34102838]
[1768893527597,3.70563927,3121.4,3119.7,5.966]
[1768893527797,3.70563927,3121.4,3119.6,3.34102838]
[1768893527798,3.70563927,3121.4,3119.8,5.966]
[1768893528209,3.54529927,3121.2,3119.7,3.206]
[1768893528507,3.54529927,3121.2,3119.9,2.759]
[1768893531610,3.54529927,3121.2,3119.5,3.34102838]
[1768893531798,3.54529927,3121.2,3119.6,5.964]
[1768893532911,3.54529927,3121.2,3119.5,3.34102838]
[1768893533099,3.54529927,3121.2,3119.6,5.964]
[1768893534117,3.54529927,3121.2,3119.6,9.48010985]
[1768893534811,3.54529927,3121.2,3119.7,3.51610985]
[1768893534996,3.48516981,3121.6,3119.7,3.51610985]
[1768893535403,3.48516981,3121.6,3119.7,3.67652985]
[1768893537403,3.48516981,3121.6,3119.8,9.47810985]
[1768893538512,3.48516981,3121.6,3119.9,3.51610985]
[1768893539407,3.48516981,3121.6,3119.9,3.67652985]
[1768893540917,0.00416157,3121.7,3120.1,3.51610985]
[1768893544122,3.48933138,3121.7,3120.2,5.961]
[1768893544321,3.48933138,3121.7,3120.3,5.961]
[1768893545209,3.48933138,3121.7,3119.7,3.51610985]
[1768893545522,3.48516981,3121.5,3119.8,5.96]
[1768893545716,3.48516981,3121.3,3119.8,5.96]
[1768893545924,3.48516981,3121.1,3119.9,2.753]
[1768893546113,3.48516981,3120.9,3119.9,2.753]
[1768893547334,3.48516981,3120.9,3119.5,1.50844628]
[1768893547638,3.48516981,3120.9,3119.6,2.752]
[1768893547942,3.48516981,3120.7,3119.3,1.50844628]
[1768893548124,3.48516981,3120.5,3118.9,0.00340433]
[1768893548328,3.48516981,3120.5,3119.0,5.959]
[1768893548733,3.48516981,3120.5,3119.1,2.751]
[1768893548936,3.48516981,3120.2,3119.1,2.751]
[1768893549136,3.48516981,3120.2,3118.9,1.51185061]
[1768893549436,3.48516981,3120.2,3119.0,2.751]
[1768893550823,3.48516981,3120.2,3119.0,4.25944628]
[1768893551430,3.48516981,3120.6,3119.3,1.50844628]
[1768893551630,0.89753607,3120.5,3119.3,1.50844628]
[1768893551836,3.48516981,3120.6,3119.3,1.50844628]
[1768893552026,0.89712025,3120.5,3119.3,1.50844628]
[1768893552230,3.48516981,3120.6,3119.3,1.50844628]
[1768893552533,3.48516981,3120.6,3119.4,2.669]
[1768893552740,3.48516981,3120.3,3119.4,2.669]
[1768893553536,3.48516981,3120.7,3119.4,2.669]
[1768893555637,3.48516981,3120.7,3119.7,1.50844628]
[1768893555847,4.99361609,3120.1,3118.9,0.00340433]
[1768893556140,3.48516981,3120.0,3118.9,0.00340433]
[1768893557042,3.48516981,3120.0,3118.9,2.75140433]
[1768893557531,3.48516981,3120.0,3118.9,0.00340433]
[1768893567448,3.59697702,3120.5,3118.9,0.00340433]
[1768893567741,3.59697702,3120.5,3118.9,3.50793651]
[1768893567946,3.59697702,3120.5,3118.9,0.00340433]
[1768893569043,3.59697702,3120.5,3118.9,3.50793651]
[1768893570344,3.75733702,3121.0,3118.9,3.50793651]
[1768893571651,3.75733702,3121.0,3118.9,3.66840651]
[1768893571953,3.59697702,3121.0,3118.9,3.66840651]
[1768893572750,3.59697702,3121.0,3119.1,3.50453218]
[1768893573554,3.59697702,3121.0,3119.2,9.45253218]
[1768893573755,3.59697702,3121.0,3119.3,3.50453218]
[1768893574146,9.91797702,3121.4,3119.4,2.5066951]
[1768893574339,0.91278605,3121.3,3119.6,0.16043]
[1768893574544,3.59697702,3121.4,3119.7,3.50453218]
[1768893574747,3.59697702,3121.4,3119.8,3.50453218]
[1768893574951,0.00416157,3121.7,3119.8,3.50453218]
[1768893575141,0.91302477,3121.6,3119.8,3.50453218]
[1768893575345,0.00416157,3121.7,3119.8,3.50453218]
[1768893576047,0.00416157,3121.7,3119.8,3.66495218]
[1768893576756,0.00416157,3121.7,3120.0,3.50453218]
[1768893577056,0.00416157,3121.7,3120.2,3.50453218]
[1768893578449,0.00416157,3121.7,3120.2,3.66493218]
[1768893578657,0.00416157,3121.7,3120.4,3.50453218]
[1768893579042,0.00416157,3121.7,3120.4,3.66492218]
[1768893579449,0.00416157,3121.7,3120.6,3.50453218]
[1768893579847,3.59697702,3122.3,3120.6,3.50453218]
[1768893580047,1.14902204,3123.1,3120.6,3.50453218]
[1768893580352,3.59697702,3122.8,3120.6,3.50453218]
[1768893580958,3.59922342,3122.8,3120.6,3.50453218]
[1768893583761,3.59922342,3122.8,3120.1,5.946]
[1768893583762,3.59922342,3122.8,3120.8,3.51261669]
[1768893584153,3.59922342,3122.8,3121.0,3.51261669]
[1768893584848,3.59922342,3122.8,3121.0,5.01914002]
[1768893589160,3.59922342,3122.8,3121.1,3.51261669]
[1768893589363,3.59922342,3122.8,3121.1,3.51506809]
[1768893592367,3.59922342,3122.8,3121.2,2.729]
[1768893593669,3.59922342,3122.8,3121.3,3.206]
[1768893595865,3.59922342,3122.8,3121.1,3.51506809]
[1768893596066,3.59922342,3122.8,3121.2,5.773]
[1768893599868,3.59922342,3122.8,3121.2,9.3728055]
[1768893600671,3.59922342,3122.8,3121.1,0.0024514]
[1768893600871,3.59922342,3122.8,3121.2,5.93]
[1768893602178,4.2506445,3122.7,3121.2,5.93]
[1768893602470,3.33968627,3122.7,3121.2,5.93]
[1768893603780,3.33968627,3122.7,3121.1,0.0024514]
[1768893603977,3.33968627,3122.5,3121.1,0.0024514]
[1768893604166,0.91238891,3122.6,3121.1,0.0024514]
[1768893604167,3.33968627,3122.3,3121.2,2.723]
[1768893605272,3.33968627,3122.3,3121.1,0.0024514]
[1768893606169,3.33968627,3122.1,3121.1,0.0024514]
[1768893606471,3.33968627,3121.9,3120.7,2.721]
[1768893606872,3.33968627,3121.9,3120.6,2.721]
[1768893607275,3.33968627,3121.7,3120.6,2.721]
[1768893607475,3.33968627,3121.7,3120.6,2.72355194]
[1768893608074,3.33968627,3121.7,3120.6,0.00255194]
[1768893608275,3.33968627,3121.5,3120.6,0.00255194]
[1768893609069,3.33968627,3122.1,3120.6,0.00255194]
[1768893609378,1.1416723,3122.2,3120.6,0.00255194]
[1768893609379,3.33968627,3121.9,3120.6,0.00255194]
[1768893609680,0.91362322,3121.8,3120.6,0.00255194]
[1768893612379,4.25330949,3121.8,3120.6,0.00255194]
[1768893612579,3.33968627,3121.8,3120.6,0.00255194]
[1768893619484,3.50000627,3121.8,3119.8,0.16042]
[1768893619791,3.33968627,3121.3,3119.9,5.921]
[1768893620490,3.33968627,3121.1,3119.2,5.26768401]
[1768893620691,3.33968627,3121.1,3119.9,0.00398271]
[1768893620986,2.82519899,3122.5,3119.4,3.206]
[1768893620987,3.33968627,3120.9,3119.4,3.206]
[1768893621184,3.33968627,3120.9,3119.4,2.714]
[1768893621990,3.33968627,3120.9,3119.4,2.71648669]
[1768893622784,3.33968627,3120.7,3119.4,0.00248669]
[1768893626092,3.42504388,3121.3,3119.4,0.00248669]
[1768893626292,3.42504388,3121.1,3119.4,0.00248669]
[1768893627295,3.42504388,3121.1,3119.6,4.84662773]
[1768893628798,3.42504388,3121.1,3119.4,0.00248669]
[1768893628986,3.42504388,3121.1,3119.5,5.67]
[1768893629500,3.42504388,3121.1,3119.6,5.918]
[1768893630698,3.42504388,3121.1,3119.7,1.50742851]
[1768893630897,3.42504388,3121.1,3119.4,0.00248669]
[1768893631194,3.42504388,3121.1,3119.5,5.917]
[1768893631896,3.42504388,3121.1,3119.6,5.916]
[1768893634707,3.42504388,3121.1,3119.6,9.25519922]
[1768893634906,3.42504388,3121.9,3120.2,1.50802906]
[1768893635801,3.42504388,3121.9,3120.2,4.84722828]
[1768893636907,3.42504388,3121.9,3120.2,3.33919922]
[1768893637107,3.42504388,3121.9,3120.2,4.84722828]
[1768893637805,3.42504388,3121.9,3120.3,5.914]
[1768893639005,3.42504388,3121.9,3120.7,1.50724076]
[1768893642113,3.42504388,3121.9,3120.8,2.704]
[1768893642611,3.42504388,3121.9,3120.0,0.16041]
[1768893642808,3.42504388,3121.9,2903.2,2.65]
[1768893642809,3.64315732,3120.0,3118.3,0.25980353]
[1768893643012,3.64315732,3119.7,3118.1,3.207]
[1768893643308,3.64315732,3119.4,3118.4,2.704]
[1768893643615,1.50724076,3119.6,3118.4,2.704]
[1768893643801,3.64315732,3119.8,3118.4,2.704]
[1768893644002,3.64581723,3119.8,3118.5,1.50724076]
[1768893644202,0.00265991,3119.8,3118.5,1.50724076]
[1768893644506,3.64315732,3120.2,3119.4,1.50724076]
[1768893644706,3.64315732,3121.1,3119.5,5.91]
[1768893645017,3.64315732,3120.9,3119.5,5.91]
[1768893645407,3.64541903,3120.9,3119.6,7.2216538]
[1768893645910,3.64541903,3120.9,3119.7,7.2216538]
[1768893646312,3.64541903,3120.9,3119.5,5.91]
[1768893646313,3.64541903,3120.9,3119.8,7.2216538]
[1768893646813,3.64541903,3120.9,3120.0,7.2216538]
[1768893647011,3.64541903,3120.9,3119.8,7.2216538]
[1768893647517,3.64541903,3120.9,3120.0,7.2216538]
[1768893647718,3.64541903,3120.9,3119.8,7.2216538]
[1768893648116,3.64541903,3120.9,3120.0,7.2216538]
[1768893648311,3.64541903,3120.9,3120.1,13.1306538]
[1768893648512,3.64541903,3120.9,3120.1,5.909]
[1768893648715,3.64541903,3120.9,3120.1,7.2216538]
[1768893649021,3.64541903,3120.9,3120.2,5.909]
[1768893649408,3.64315732,3121.4,3120.2,5.909]
[1768893649808,3.64315732,3121.4,3120.4,7.2216538]
[1768893650310,3.64315732,3121.4,3120.5,7.2216538]
[1768893650505,3.64631105,3121.4,3119.4,0.16044]
[1768893650810,3.64631105,3121.4,3119.7,7.2216538]
[1768893651010,3.64631105,3121.4,3119.8,5.909]
[1768893651513,3.64631105,3121.4,3119.8,13.1306538]
[1768893652521,3.64631105,3121.4,3120.1,7.2216538]
[1768893652722,3.64631105,3121.4,3120.3,7.2216538]
[1768893652923,3.64631105,3121.4,3120.1,7.2216538]
[1768893653323,3.64631105,3121.4,3120.3,7.2216538]
[1768893653621,3.64631105,3121.4,3120.2,7.2216538]
[1768893654015,3.64631105,3121.4,3120.4,7.2216538]
[1768893654211,3.64631105,3121.4,3120.2,7.2216538]
[1768893654615,3.64631105,3121.4,3120.4,7.2216538]
[1768893654824,3.64631105,3121.4,3120.2,7.2216538]
[1768893655411,3.64631105,3121.4,3120.4,7.2216538]
[1768893655616,3.64631105,3121.4,3120.2,7.2216538]
[1768893656224,0.00315373,3121.4,3120.4,7.2216538]
[1768893656428,0.00315373,3121.4,3120.5,7.2216538]
[1768893656817,0.00315373,3121.4,3120.0,0.16041]
[1768893656818,0.00315373,3121.4,3120.8,7.2216538]
[1768893657020,3.28237556,3121.9,3120.9,2.7]
[1768893657322,3.28237556,3121.9,3121.0,3.207]
[1768893657715,3.28237556,3121.9,3121.1,7.2216538]
[1768893657919,3.28237556,3121.9,3121.0,3.207]
[1768893657920,3.28237556,3121.9,3121.2,7.2216538]
[1768893658123,3.28644729,3121.9,3121.2,7.2216538]
[1768893658328,3.28237556,3122.3,3121.3,7.2216538]
[1768893658525,3.28237556,3122.3,3121.0,3.207]
[1768893658724,3.28237556,3122.3,3121.0,10.4286538]
[1768893658914,3.28237556,3122.3,3121.1,7.2216538]
[1768893659124,3.28237556,3122.3,3121.0,3.207]
[1768893659321,3.28522006,3122.3,3121.1,7.2216538]
[1768893660227,3.28522006,3122.3,3120.8,0.0032217]
[1768893660426,3.28522006,3122.3,3120.9,4.383]
[1768893661728,3.28522006,3122.3,3121.0,7.2216538]
[1768893661924,3.28522006,3122.3,3121.1,7.2216538]
[1768893662431,3.28522006,3122.3,3121.2,7.2216538]
[1768893662631,3.28522006,3122.3,3121.1,7.2216538]
[1768893663130,3.28522006,3122.3,3121.3,7.2216538]
[1768893663334,3.28522006,3122.3,3121.2,7.2216538]
[1768893663734,3.28522006,3122.3,3121.4,7.2216538]
[1768893663935,3.28522006,3122.3,3121.2,7.2216538]
[1768893664329,3.28522006,3122.3,3121.4,7.2216538]
[1768893664627,3.28522006,3122.3,3120.9,4.383]
[1768893664628,3.28522006,3122.3,3121.2,7.2216538]
[1768893665233,3.28522006,3122.3,3121.4,7.2216538]
[1768893665429,3.28522006,3122.3,3121.2,7.2216538]
[1768893665931,3.28522006,3122.3,3121.4,7.2216538]
[1768893666137,3.28522006,3122.3,3121.5,3.206]
[1768893666529,3.28522006,3122.3,3121.5,10.4276538]
[1768893667337,0.0028445,3122.3,3121.8,7.2216538]
[1768893667538,3.28237556,3122.8,3121.9,2.697]
[1768893668338,3.28237556,3122.8,3121.0,0.16036]
[1768893668532,3.28487639,3122.8,3121.3,7.2216538]
[1768893669039,3.28487639,3122.8,3121.1,5.903]
[1768893669438,3.28487639,3122.8,3121.4,7.2216538]
[1768893669834,3.28487639,3122.8,3121.5,7.2216538]
[1768893670036,3.28487639,3122.8,3121.4,7.2216538]
[1768893670439,3.28487639,3122.8,3121.5,7.2216538]
[1768893670735,3.28487639,3122.8,3121.6,5.902]
[1768893671138,3.28487639,3122.8,3121.6,13.1236538]
[1768893671839,3.28487639,3122.8,3121.7,2.696]
[1768893672040,3.28487639,3122.8,3121.7,5.902]
[1768893672241,3.28487639,3122.8,3121.0,0.16036]
[1768893672436,3.28487639,3122.8,3121.3,7.2216538]
[1768893672737,3.28487639,3122.8,3121.4,5.47]
[1768893672938,3.28487639,3122.8,3121.5,7.2216538]
[1768893673340,3.28487639,3122.8,3121.6,7.2216538]
[1768893673641,3.28487639,3122.8,3121.5,7.2216538]
[1768893674140,3.28487639,3122.8,3121.6,7.2216538]
[1768893674440,3.28487639,3122.8,3121.5,7.2216538]
[1768893674643,3.28487639,3122.8,3121.6,7.2216538]
[1768893675048,0.00250083,3122.8,3121.4,5.47]
[1768893675343,0.00250083,3122.8,3122.0,7.2216538]
[1768893675543,0.00250083,3122.8,3122.3,7.2216538]
[1768893675840,0.00250083,3122.8,3122.5,7.2216538]
[1768893676042,3.28237556,3123.2,3122.6,3.206]
[1768893677038,3.28583582,3123.2,3122.6,3.206]
[1768893677639,3.28583582,3123.2,3120.5,4.02246377]
[1768893677640,3.28583582,3123.2,3122.7,5.9]
[1768893677844,0.00346026,3123.2,3122.8,3.11395748]
[1768893678042,0.00346026,3123.2,3122.9,2.83921]
[1768893678237,0.00346026,3123.2,3121.7,3.48569941]
[1768893678540,0.00346026,3123.2,3121.8,16.60635321]
[1768893678746,0.00346026,3123.2,3121.8,9.38469941]
[1768893678945,0.00346026,3123.2,3121.8,10.70735321]
[1768893679135,0.16026,3122.9,3121.8,3.48569941]
[1768893679343,0.16026,3122.9,3121.9,3.206]
[1768893679539,0.16026,3122.9,3122.0,2.693]
[1768893681352,0.16026,3122.9,3121.0,0.16036]
[1768893681353,0.16026,3122.9,3122.1,3.48569941]
[1768893681547,0.00346026,3123.2,3122.3,3.48569941]
[1768893681742,0.00346026,3123.2,3121.1,0.16035]
[1768893681743,0.00346026,3123.2,3122.4,7.98469941]
[1768893681945,0.1602,3124.1,3122.6,3.48569941]
[1768893682145,0.93289923,3124.0,3122.6,3.48569941]
[1768893682457,0.1602,3124.1,3122.8,3.48569941]
[1768893682750,0.93274246,3124.0,3123.0,3.48569941]
[1768893682951,0.00376376,3124.0,3123.0,3.48966244]
[1768893683441,0.00376376,3124.0,3123.1,10.68348126]
[1768893684350,0.00376376,3124.0,3123.0,0.00396303]
[1768893684550,0.00376376,3124.0,3123.2,2.97694277]
[1768893684551,0.93235592,3123.9,3123.2,2.97694277]
[1768893684740,0.16022,3123.7,3123.1,2.692]
[1768893684940,0.16023,3123.6,3123.1,3.205]
[1768893685148,0.16023,3123.6,3123.2,2.32723]
[1768893685348,0.16023,3123.6,3123.0,3.03e-06]
[1768893685652,0.00376376,3124.0,3120.8,0.16037]
[1768893685653,0.9321838,3123.5,3120.8,0.16037]
[1768893685952,0.9321838,3123.4,3120.9,10.06226902]
[1768893686154,0.16026,3123.0,3120.9,10.06226902]
[1768893686448,0.16022,3123.7,3121.5,3.46182746]
[1768893686653,0.16022,3123.7,3121.3,0.16034]
[1768893686654,0.93257191,3123.6,3121.7,3.46182746]
[1768893686854,0.93257191,3123.5,3122.0,3.46182746]
[1768893687041,0.93257191,3123.4,3122.2,3.46182746]
[1768893687246,0.16022,3123.7,3122.2,3.46182746]
[1768893687447,0.93265393,3123.6,3122.4,3.46182746]
[1768893687644,0.93265393,3123.5,3122.4,3.46182746]
[1768893687848,0.16022,3123.7,3122.7,3.46182746]
[1768893688047,0.16022,3123.7,3122.1,3.205]
[1768893688048,0.93265106,3123.6,3122.8,6.15282746]
[1768893688250,0.16022,3123.7,3122.9,2.691]
[1768893688452,0.93273007,3123.6,3123.0,3.46182746]
[1768893688648,0.16022,3123.7,3123.0,3.46182746]
[1768893688848,0.93271948,3123.6,3123.0,3.46182746]
[1768893689052,0.16022,3123.7,3123.0,3.46182746]
[1768893690855,0.16022,3123.7,3123.1,5.894]
[1768893691056,0.16022,3123.7,3123.1,5.8978966]
[1768893691458,0.16022,3123.7,3123.1,0.0038966]
[1768893691655,0.16022,3123.7,3123.2,2.34901]
[1768893692362,0.16022,3123.7,3123.3,2.689]
[1768893692552,0.00376376,3124.0,3123.3,2.689]
[1768893692758,0.92680217,3123.9,3123.3,2.689]
[1768893693055,0.16022,3123.7,3123.3,6.15082746]
[1768893693249,0.00376376,3124.0,3123.3,16.57748126]
[1768893693454,0.92687268,3123.9,3123.3,6.15082746]
[1768893693653,0.92687268,3123.8,3123.3,6.15082746]
[1768893693855,0.16022,3123.7,3123.3,6.15082746]
[1768893694256,0.00376376,3124.0,3123.3,16.57748126]
[1768893694456,0.9271219,3123.9,3123.3,6.15082746]
[1768893694660,0.9271219,3123.8,3123.3,6.15082746]
[1768893694859,0.16023,3123.6,3123.1,6.6e-06]
[1768893695060,0.16023,3123.5,3123.2,1.14420175]
[1768893695261,0.16023,3123.5,3123.2,2.688]
[1768893695462,0.16023,3123.5,3123.2,1.93911]
[1768893695762,0.16023,3123.5,3123.2,1.60119]
[1768893696150,0.16023,3123.5,3123.2,1.23837661]
[1768893696361,0.16023,3123.5,3123.2,0.80464661]
[1768893696553,0.16023,3123.5,3123.2,0.41425661]
[1768893696955,0.16023,3123.5,3123.2,0.03364661]
[1768893697360,0.16023,3123.5,3123.2,2.68700661]
[1768893698269,0.16023,3123.5,3123.1,2.26695]
[1768893698453,0.16023,3123.5,3123.1,1.90381]
[1768893699266,0.16023,3123.5,3123.1,1.57728776]
[1768893699463,0.16024,3123.4,3123.1,7.76e-06]
[1768893699759,0.16024,3123.4,3123.0,2.34837]
[1768893699965,0.16024,3123.4,3123.0,1.69333]
[1768893700359,0.16024,3123.4,3123.0,1.36936]
[1768893700556,6.321,3123.8,3122.3,3.46182746]
[1768893700758,0.16026,3122.9,3122.3,3.46182746]
[1768893700961,0.16026,3122.9,3122.4,1.748]
[1768893701561,0.16026,3122.9,3122.4,0.00280547]
[1768893702066,0.16026,3122.9,3122.3,1.455]
[1768893702963,0.16028,3122.5,3120.3,4.02246377]
[1768893703163,0.16028,3122.5,3120.6,10.4266538]
[1768893703360,0.16028,3122.5,3121.0,10.4266538]
[1768893703569,0.16028,3122.5,3121.2,10.4266538]
[1768893703965,0.16028,3122.5,3121.6,13.80695886]
[1768893704273,0.16028,3122.5,3121.7,2.684]
[1768893704573,0.16028,3122.5,3121.8,10.4266538]
[1768893704968,0.16028,3122.5,3121.9,10.4266538]
[1768893705168,0.16028,3122.5,3121.8,10.4266538]
[1768893705668,0.16028,3122.5,3121.9,10.4266538]
[1768893705875,0.16028,3122.5,3121.9,13.80695886]
[1768893706774,0.16028,3122.5,3122.0,2.687]
[1768893707375,0.16026,3123.0,3122.0,13.1136538]
[1768893707575,0.92588405,3122.9,3122.0,2.687]
[1768893707868,0.92588405,3122.8,3122.0,2.687]
[1768893708070,0.16027,3122.8,3122.1,2.687]
[1768893708265,0.16028,3122.6,3121.9,3.38030506]
[1768893708580,0.16029,3122.4,3121.4,3.38030506]
[1768893708777,0.16029,3122.4,3121.7,2.687]
[1768893709078,0.16029,3122.4,3121.8,2.686]
[1768893709272,0.16029,3122.4,3121.8,13.1126538]
[1768893709468,0.16029,3122.4,3121.9,10.4266538]
[1768893710874,0.16029,3122.4,3121.9,10.0705438]
[1768893711475,0.16029,3122.4,3122.1,3.38030506]
[1768893711670,6.321,3123.0,3122.1,3.05708506]
[1768893711671,7.46405906,3123.0,3122.1,3.05708506]
[1768893711872,0.16029,3122.4,3122.1,5.42049506]
[1768893712072,0.16029,3122.4,3122.1,5.09872506]
[1768893712273,0.16029,3122.4,3121.2,0.00399881]
[1768893712470,0.16029,3122.4,3121.5,10.0705438]
[1768893713181,0.16029,3122.4,3121.7,10.0705438]
[1768893713477,0.16029,3122.4,3121.6,10.0705438]
[1768893713979,0.16029,3122.4,3121.8,10.0705438]
[1768893714180,0.16029,3122.4,3121.8,3.34932094]
[1768893714480,0.16029,3122.4,3122.0,13.41986474]
[1768893714677,0.16029,3122.4,3122.1,2.02751]
[1768893714878,0.16029,3122.4,3122.1,11.7550638]
[1768893715180,0.16029,3122.4,3122.1,11.3147338]
[1768893715476,7.46405906,3123.0,3122.0,2.689]
[1768893715477,0.1603,3122.3,3122.0,2.689]
[1768893715673,0.1603,3122.3,3122.0,1.9767]
[1768893715875,0.1603,3122.3,3122.0,1.6515]
[1768893716277,0.1603,3122.3,3122.1,3.34932094]
[1768893716583,0.1603,3122.3,3122.1,2.68376094]
[1768893718085,0.1603,3122.3,3122.1,2.36292094]
[1768893718287,0.1603,3122.3,3122.0,1.6515]
[1768893720274,0.1603,3122.3,3122.0,5.00082094]
[1768893720781,0.16028,3122.7,3122.1,3.34932094]
[1768893720983,1.08532202,3122.6,3122.1,3.34932094]
[1768893721179,0.16028,3122.6,3122.1,3.02805094]
[1768893721380,0.16028,3122.6,3122.0,1.6515]
[1768893722084,0.16028,3122.5,3122.0,1.32387]
[1768893722385,0.16029,3122.4,3121.8,2.542]
[1768893723478,0.16029,3122.4,3121.8,5.89132094]